bitfinex/quotes_ETHUSD_20260121
["timestamp","ask_amount","ask_price","bid_price","bid_amount"]
[1769002002316,0.98758794,2934.5,2933.1,0.98821948]
[1769002002515,0.03837505,2934.4,2933.1,0.98821948]
[1769002002692,1.02596299,2934.5,2933.2,0.03409245]
[1769002002893,1.02596299,2934.5,2933.3,0.98821948]
[1769002003099,4.43371561,2934.5,2933.3,0.98821948]
[1769002003300,0.44337156,2934.4,2933.3,0.98821948]
[1769002003511,0.03837505,2934.3,2933.3,0.98821948]
[1769002005204,0.03677505,2934.3,2933.3,0.98821948]
[1769002012811,0.03517505,2934.3,2933.3,0.98821948]
[1769002017124,0.44337156,2934.4,2933.3,0.98821948]
[1769002017530,0.47942035,2934.3,2933.3,0.98821948]
[1769002017828,3.40682442,2935.3,2933.3,0.98821948]
[1769002017829,1.27419017,2935.9,2933.5,1.22320223]
[1769002018008,1.27419017,2935.7,2933.7,1.22320223]
[1769002018209,1.27419017,2935.5,2933.7,1.22320223]
[1769002018396,0.03517505,2935.4,2933.7,1.22320223]
[1769002018593,1.30936522,2935.8,2933.7,1.22320223]
[1769002018823,0.47154758,2935.7,2933.7,1.22320223]
[1769002019127,0.03517505,2935.6,2933.7,1.22320223]
[1769002019331,0.03517505,2935.6,2933.9,1.22320223]
[1769002019935,4.71570782,2935.7,2933.9,1.22320223]
[1769002020818,1.27419017,2935.6,2933.9,1.22320223]
[1769002020998,0.50674583,2935.5,2933.9,1.22320223]
[1769002021292,0.50674583,2935.5,2933.9,1.25728655]
[1769002021697,0.50674583,2935.5,2934.1,1.22320223]
[1769002021897,5.18751371,2935.5,2934.1,1.22320223]
[1769002022138,1.27419017,2935.2,2933.5,1.22320223]
[1769002022337,1.27419017,2935.0,2933.2,1.22320223]
[1769002022628,1.27419017,2934.8,2933.2,1.22320223]
[1769002022798,1.27419017,2934.6,2933.2,1.22320223]
[1769002023000,0.03517505,2934.5,2933.2,1.22320223]
[1769002023596,0.03517505,2934.5,2933.5,0.002]
[1769002023932,0.47170433,2934.4,2933.5,0.002]
[1769002024440,0.03517505,2934.3,2933.5,0.002]
[1769002024730,1.30776522,2934.5,2933.5,0.002]
[1769002024919,6.43,2934.5,2932.8,1.22520223]
[1769002025118,1.30776522,2934.4,2932.8,0.002]
[1769002025511,1.27419017,2934.2,2932.8,0.002]
[1769002025832,1.27419017,2933.8,2932.8,0.002]
[1769002026831,0.128,2933.7,2932.5,0.002]
[1769002027130,0.128,2933.7,2932.1,0.002]
[1769002027131,1.27419017,2933.4,2932.1,0.002]
[1769002027698,3.97313052,2933.3,2932.1,1.22520223]
[1769002027903,0.52473207,2933.2,2932.1,1.22520223]
[1769002028414,0.52473207,2933.2,2932.1,0.002]
[1769002029732,3.4093621,2933.1,2932.1,0.002]
[1769002030334,1.27419017,2933.0,2931.6,1.22320223]
[1769002030633,0.80929144,2932.9,2931.6,1.22320223]
[1769002030999,0.80929144,2932.9,2931.7,1.22320223]
[1769002032455,1.77509563,2933.1,2931.8,1.22320223]
[1769002032730,1.27419017,2933.0,2931.8,1.22320223]
[1769002032935,1.27419017,2933.4,2931.8,1.22320223]
[1769002033137,1.30776522,2933.3,2931.8,1.22320223]
[1769002034236,4.71696978,2933.3,2931.8,4.6340633]
[1769002034538,0.47169698,2933.2,2931.8,4.6340633]
[1769002034857,0.03357505,2933.1,2931.9,1.22320223]
[1769002035205,0.03357505,2933.5,2931.9,1.22320223]
[1769002035411,1.65120008,2933.5,2931.9,1.22320223]
[1769002036143,1.65120008,2933.5,2931.8,3.4449698]
[1769002036144,1.65120008,2933.5,2932.0,0.002]
[1769002036352,1.61762503,2933.3,2932.0,0.002]
[1769002036553,1.65120008,2933.2,2932.0,0.002]
[1769002038531,1.65120008,2933.2,2932.0,1.68683667]
[1769002038832,5.06047451,2933.2,2932.0,1.68683667]
[1769002039765,1.65120008,2933.2,2932.0,1.68683667]
[1769002039969,0.50603747,2933.1,2932.0,1.68683667]
[1769002040270,0.03357505,2933.0,2932.0,1.68683667]
[1769002040467,0.03197505,2933.0,2932.0,1.68683667]
[1769002041439,5.05912075,2933.0,2932.0,0.002]
[1769002041873,1.64960008,2933.0,2932.0,0.002]
[1769002042033,0.55650532,2932.9,2932.0,0.002]
[1769002042230,0.03037505,2932.8,2932.0,0.002]
[1769002045722,0.03037505,2932.8,2931.8,0.002]
[1769002045723,3.4400859,2932.8,2931.8,0.002]
[1769002045979,1.61762503,2932.7,2931.4,0.002]
[1769002046158,0.128,2932.4,2931.1,0.002]
[1769002046358,1.61762503,2932.3,2931.1,0.002]
[1769002046796,1.61762503,2932.1,2931.1,0.002]
[1769002046965,1.61762503,2932.1,2930.6,0.002]
[1769002047274,1.61762503,2931.9,2930.6,0.002]
[1769002048251,3.4101173,2932.5,2930.9,1.68483667]
[1769002048460,0.03197505,2932.4,2932.0,0.002]
[1769002048795,3.44185644,2932.7,2932.0,0.002]
[1769002049153,0.03197505,2932.7,2932.0,0.002]
[1769002049359,3.44180906,2932.7,2932.0,0.002]
[1769002049560,0.74156335,2932.6,2932.0,0.002]
[1769002049760,0.03197505,2932.5,2932.0,0.002]
[1769002050869,0.74156335,2932.6,2932.0,0.002]
[1769002051171,0.03197505,2932.9,2932.0,1.68683667]
[1769002051582,5.59070642,2933.4,2932.0,1.68683667]
[1769002051755,0.59104569,2933.3,2932.0,1.68683667]
[1769002052970,4.00022999,2933.3,2932.0,1.68683667]
[1769002056298,0.59104569,2933.3,2932.0,1.68683667]
[1769002056808,4.00017925,2933.3,2932.0,1.68683667]
[1769002057196,0.59104569,2933.3,2932.0,3.41263844]
[1769002057511,3.40849422,2933.9,2932.1,1.68483667]
[1769002057716,0.03197505,2933.8,2932.1,1.68483667]
[1769002058821,0.03197505,2933.8,2932.1,1.71894191]
[1769002059607,3.4405915,2933.8,2932.2,3.41040856]
[1769002059911,3.4405915,2933.8,2932.3,1.68483667]
[1769002059912,0.68490857,2933.7,2932.3,1.68483667]
[1769002060107,0.03297505,2933.6,2932.3,1.68483667]
[1769002061814,0.03297505,2933.6,2932.4,1.68483667]
[1769002062826,1.61762503,2933.5,2932.1,1.68483667]
[1769002063006,0.87879705,2933.4,2932.2,0.03410408]
[1769002063327,0.87879705,2933.4,2932.2,1.68483667]
[1769002063813,4.287823,2933.4,2932.2,1.68483667]
[1769002065130,0.87879705,2933.4,2932.2,1.68483667]
[1769002066138,0.87879705,2933.4,2932.2,1.71894075]
[1769002066424,0.59054251,2933.3,2932.2,1.71894075]
[1769002068427,0.59054251,2933.3,2932.3,2.1338257]
[1769002068630,0.03197505,2933.2,2932.5,2.1338257]
[1769002071907,0.001,2933.1,2932.5,2.1338257]
[1769002074310,0.001,2933.1,2932.1,2.1338257]
[1769002074649,0.001,2933.1,2932.3,2.1338257]
[1769002076147,0.03297505,2933.1,2932.3,2.1338257]
[1769002076641,0.001,2933.1,2932.3,2.1338257]
[1769002078841,0.001,2933.1,2932.4,2.1955906]
[1769002079747,0.03297505,2933.1,2932.4,2.1955906]
[1769002081260,0.001,2933.1,2932.4,2.1955906]
[1769002082327,6.43,2933.5,2932.6,2.1955906]
[1769002082548,6.431,2933.6,2932.7,2.1955906]
[1769002083150,6.431,2933.6,2932.7,2.22968887]
[1769002083637,9.30005331,2934.5,2932.8,2.1955906]
[1769002083962,3.23605864,2934.4,2932.8,2.1955906]
[1769002084527,3.23605864,2934.4,2933.0,2.1955906]
[1769002085257,2.30605331,2934.3,2933.0,2.1955906]
[1769002085425,2.80850417,2934.2,2932.3,2.1955906]
[1769002085625,2.80850417,2934.2,2932.1,3.41041572]
[1769002085626,2.30605331,2933.9,2932.4,2.1955906]
[1769002085826,2.53665864,2933.8,2932.6,2.1955906]
[1769002086648,2.30605331,2933.7,2932.6,2.1955906]
[1769002087355,0.23060533,2933.8,2932.8,2.1955906]
[1769002087659,2.30605331,2933.7,2932.5,2.1955906]
[1769002088451,2.30605331,2933.7,2932.6,2.1955906]
[1769002088745,0.23060533,2933.8,2932.6,2.1955906]
[1769002089258,0.23060533,2933.8,2932.6,5.60552342]
[1769002089566,0.23060533,2933.8,2932.7,2.1955906]
[1769002089859,0.36390519,2933.7,2932.7,2.1955906]
[1769002090162,0.23060533,2933.8,2932.7,2.1955906]
[1769002090839,0.23060533,2933.8,2932.8,2.1955906]
[1769002091166,2.30605331,2934.0,2933.0,2.1955906]
[1769002091931,9.83812963,2934.2,2933.0,2.1955906]
[1769002092698,12.14418294,2934.2,2933.0,2.1955906]
[1769002093782,6.43,2934.2,2933.0,2.1955906]
[1769002093988,3.64021324,2935.5,2933.0,2.1955906]
[1769002093989,5.89118229,2935.1,2933.1,2.1955906]
[1769002094159,2.77676636,2935.0,2933.1,2.1955906]
[1769002095294,2.30605331,2935.0,2933.3,2.1955906]
[1769002095488,0.001,2935.3,2933.3,2.1955906]
[1769002095658,0.001,2935.3,2933.2,0.60009245]
[1769002095659,2.30568474,2935.3,2933.5,2.464199]
[1769002096062,2.30568474,2935.3,2933.4,10.22704029]
[1769002096063,0.001,2935.3,2933.9,2.464199]
[1769002096472,2.30568474,2935.3,2933.9,2.464199]
[1769002096770,0.23056847,2935.2,2933.9,2.464199]
[1769002097092,0.001,2935.3,2933.9,2.464199]
[1769002097562,0.001,2935.3,2934.1,2.464199]
[1769002100498,0.001,2935.3,2934.3,2.464199]
[1769002101068,2.30568474,2935.3,2934.2,3.40808397]
[1769002101589,2.53625321,2935.3,2934.1,3.40815053]
[1769002102171,2.53625321,2935.3,2934.2,2.464199]
[1769002102172,0.001,2935.3,2934.2,2.464199]
[1769002102703,0.001,2935.3,2934.4,2.464199]
[1769002104697,0.001,2935.3,2934.5,3.40773555]
[1769002105101,0.001,2935.3,2934.4,5.90608997]
[1769002105304,0.001,2935.3,2934.5,2.464199]
[1769002105906,0.001,2935.3,2934.5,2.49827635]
[1769002106979,0.001,2935.3,2934.6,9.27943786]
[1769002107178,0.001,2935.3,2934.6,5.87181843]
[1769002107398,0.001,2935.1,2934.5,3.40768387]
[1769002107580,0.001,2935.3,2934.6,2.464199]
[1769002108405,0.001,2935.3,2934.5,3.44176122]
[1769002109908,0.001,2935.3,2934.5,0.03407735]
[1769002110206,2.30568474,2935.3,2934.2,3.82]
[1769002110411,2.30568474,2935.3,2934.2,7.22799443]
[1769002111014,2.30568474,2935.3,2934.2,3.82]
[1769002111182,2.53625321,2935.3,2934.2,3.82]
[1769002113717,2.53625321,2935.3,2934.0,3.40825789]
[1769002113880,2.53625321,2935.3,2934.0,3.44234105]
[1769002114590,2.53625321,2935.3,2934.1,3.40817518]
[1769002115410,2.30468474,2935.1,2933.7,3.40860421]
[1769002115578,2.30468474,2935.1,2933.8,3.40853632]
[1769002115784,2.30468474,2935.1,2933.9,3.40843141]
[1769002117408,2.30468474,2935.1,2933.7,5.87284083]
[1769002117597,2.30468474,2935.1,2933.7,5.90692747]
[1769002117814,2.30468474,2935.1,2933.7,9.31559229]
[1769002118131,2.30468474,2935.1,2933.7,9.28150565]
[1769002118906,2.30468474,2935.1,2933.8,2.464199]
[1769002119538,2.30468474,2935.1,2934.3,0.002]
[1769002119832,2.61791575,2935.1,2934.3,0.002]
[1769002121631,2.30468474,2935.0,2934.0,0.002]
[1769002126244,2.83322338,2934.9,2934.0,0.002]
[1769002127046,2.83322338,2934.7,2934.0,0.002]
[1769002127913,3.83912077,2934.8,2934.0,0.002]
[1769002128119,0.564,2934.8,2934.0,0.002]
[1769002128539,2.83322338,2935.0,2934.0,2.80106539]
[1769002128747,0.001,2935.1,2934.0,2.83514855]
[1769002129146,2.83322338,2935.0,2934.0,2.83514855]
[1769002131038,2.83322338,2934.7,2934.0,0.002]
[1769002131938,2.83322338,2934.7,2934.2,0.002]
[1769002135060,0.564,2934.6,2934.2,0.002]
[1769002138866,3.27459897,2934.6,2934.2,0.002]
[1769002139066,2.71059897,2934.4,2933.5,2.96862401]
[1769002139369,2.71059897,2934.4,2933.3,2.96862401]
[1769002144664,2.71059897,2934.4,2933.5,0.002]
[1769002146689,2.71059897,2934.3,2933.5,0.002]
[1769002153056,2.71059897,2934.1,2933.5,0.002]
[1769002153254,1.21897197,2934.0,2933.5,0.002]
[1769002153478,0.564,2934.0,2933.5,0.002]
[1769002156385,3.59860117,2934.0,2933.5,0.002]
[1769002157388,3.59860117,2934.0,2933.7,0.002]
[1769002157791,0.564,2934.0,2933.7,0.002]
[1769002159171,0.564,2934.0,2933.5,0.002]
[1769002167214,0.564,2934.0,2933.3,3.11530317]
[1769002167215,6.87372194,2933.9,2933.3,0.002]
[1769002167718,3.03460117,2933.8,2933.2,0.002]
[1769002168604,6.44315511,2933.8,2933.2,0.002]
[1769002168804,6.44315511,2933.8,2933.0,0.002]
[1769002169005,1.36907259,2933.7,2933.0,0.002]
[1769002169416,4.40367376,2933.7,2933.0,0.002]
[1769002170533,4.40367376,2933.7,2933.4,0.002]
[1769002170835,7.8123607,2933.7,2933.0,0.002]
[1769002171035,7.8123607,2933.7,2933.1,0.002]
[1769002172233,4.40367376,2933.7,2933.1,0.002]
[1769002172608,7.81234212,2933.7,2933.1,0.002]
[1769002172832,4.40367376,2933.7,2933.1,0.002]
[1769002175018,1.36907259,2933.7,2933.1,3.11530317]
[1769002175219,0.001,2933.8,2933.1,3.11530317]
[1769002176335,0.001,2934.2,2933.4,3.11330317]
[1769002176535,0.001,2934.2,2933.4,3.1473933]
[1769002177106,0.564,2934.3,2933.4,0.03409013]
[1769002177458,0.564,2934.3,2933.5,3.11330317]
[1769002178957,0.001,2934.8,2933.5,3.44291645]
[1769002179132,0.565,2934.8,2933.7,3.11330317]
[1769002179333,0.001,2934.8,2933.7,3.11330317]
[1769002180858,0.001,2934.8,2933.7,3.14738981]
[1769002182657,3.83946741,2934.8,2933.7,0.03408664]
[1769002182832,0.001,2934.6,2933.8,3.11330317]
[1769002187182,0.001,2934.6,2933.9,0.03408432]
[1769002187342,0.001,2934.6,2934.0,3.01652472]
[1769002187536,0.001,2934.6,2934.1,3.05060672]
[1769002189158,0.001,2935.1,2934.2,3.01652472]
[1769002189437,0.001,2935.1,2934.3,3.05060439]
[1769002189836,0.001,2935.1,2934.4,3.01652472]
[1769002194977,0.001,2935.1,2934.6,0.002]
[1769002195178,0.001,2934.9,2934.6,0.002]
[1769002202600,0.001,2934.9,2934.0,0.03408316]
[1769002202601,3.11142989,2934.8,2934.0,0.03408316]
[1769002202763,3.83946741,2934.9,2933.2,0.002]
[1769002202764,3.11142989,2934.5,2933.5,3.16765612]
[1769002203171,3.11142989,2934.5,2933.5,0.03408897]
[1769002203904,3.11142989,2934.2,2933.3,0.002]
[1769002204386,3.11142989,2933.9,2933.3,0.002]
[1769002204704,3.80641962,2933.8,2933.3,0.002]
[1769002205512,3.11142989,2934.5,2933.4,3.83846741]
[1769002205808,3.11142989,2934.5,2933.5,3.16765612]
[1769002206006,3.11142989,2934.5,2933.6,6.61047698]
[1769002206188,3.11142989,2934.7,2933.7,3.16765612]
[1769002206389,3.11242989,2934.9,2933.9,3.16765612]
[1769002206590,3.11242989,2934.9,2934.0,0.03408316]
[1769002206997,0.001,2934.9,2934.0,3.20173928]
[1769002207828,0.001,2934.9,2934.1,3.16765612]
[1769002207981,0.001,2935.1,2934.4,3.16765612]
[1769002208187,0.001,2935.1,2934.4,3.20173463]
[1769002208496,3.11242989,2935.1,2934.0,3.16765612]
[1769002208695,3.11242989,2935.1,2933.9,3.40838048]
[1769002208896,3.11242989,2935.1,2934.0,0.03408316]
[1769002209109,3.11242989,2935.1,2934.0,6.6099399]
[1769002209409,3.11242989,2935.1,2934.0,6.57585674]
[1769002209781,3.11242989,2935.1,2934.0,3.16765612]
[1769002209981,3.11242989,2935.1,2934.0,6.61002205]
[1769002210282,3.11242989,2935.1,2934.0,6.57593889]
[1769002211428,3.11242989,2935.1,2934.0,3.16765612]
[1769002211714,3.11242989,2935.1,2934.0,3.20173928]
[1769002212208,3.11242989,2935.1,2934.0,6.61005474]
[1769002212403,3.11242989,2935.1,2934.0,6.57597158]
[1769002213291,3.11242989,2935.1,2934.1,3.16765612]
[1769002214920,3.11142989,2934.6,2933.5,3.16965612]
[1769002215218,3.11142989,2934.6,2933.5,6.61262879]
[1769002215409,3.11142989,2934.6,2933.5,3.16965612]
[1769002215718,3.11142989,2934.6,2933.5,3.20374509]
[1769002216124,3.54838112,2934.6,2933.5,3.20374509]
[1769002216819,3.54838112,2934.6,2933.5,6.61256265]
[1769002217024,3.54838112,2934.6,2933.5,6.57847368]
[1769002217330,3.54838112,2934.6,2933.6,0.03408781]
[1769002217518,3.39842705,2934.9,2933.6,3.4295516]
[1769002217693,3.96142705,2934.9,2933.6,3.4295516]
[1769002217894,0.001,2935.1,2934.1,3.83846741]
[1769002218120,0.001,2935.1,2934.2,3.42954462]
[1769002219011,0.001,2935.1,2934.3,3.40796782]
[1769002219214,0.001,2935.1,2934.4,0.03407851]
[1769002220925,0.001,2935.1,2934.4,3.4295423]
[1769002222031,0.001,2935.1,2934.4,3.39546379]
[1769002222932,0.001,2935.1,2934.5,0.03407735]
[1769002223295,0.001,2935.1,2934.5,3.42954114]
[1769002224230,0.001,2935.1,2934.5,0.03407735]
[1769002224727,0.001,2935.1,2934.5,3.42954114]
[1769002226801,0.001,2935.1,2934.5,0.03407735]
[1769002227002,0.001,2935.1,2934.4,3.4295423]
[1769002230840,0.001,2935.1,2934.6,0.002]
[1769002231305,0.001,2934.9,2934.6,0.002]
[1769002232807,0.001,2934.9,2934.6,0.03607619]
[1769002233438,0.001,2934.9,2934.6,0.002]
[1769002236908,0.001,2934.9,2933.6,7.21546379]
[1769002236909,3.39842705,2934.8,2933.6,7.21546379]
[1769002237238,3.39842705,2934.8,2933.7,0.03408664]
[1769002237459,3.39842705,2934.8,2933.6,3.39546379]
[1769002237608,3.39842705,2934.8,2933.5,0.002]
[1769002237813,3.39842705,2934.8,2933.5,0.03608897]
[1769002238044,4.17951012,2934.9,2933.5,0.03608897]
[1769002238045,3.39842705,2934.6,2933.6,3.40877499]
[1769002238249,3.39842705,2934.6,2933.6,10.21301979]
[1769002238734,0.75779372,2934.7,2933.7,3.39546379]
[1769002239052,0.34104271,2934.9,2933.9,3.39546379]
[1769002239344,3.73946976,2934.9,2934.0,3.42954695]
[1769002240409,3.73946976,2934.9,2934.0,0.03408316]
[1769002240610,3.73946976,2934.9,2933.9,0.03408432]
[1769002241607,3.73946976,2934.9,2933.6,6.80419745]
[1769002241945,3.39842705,2934.7,2933.7,0.03408664]
[1769002242242,3.39842705,2934.7,2933.8,3.40854482]
[1769002242641,3.39842705,2934.7,2933.9,0.03408432]
[1769002243006,3.39842705,2934.7,2934.2,0.002]
[1769002243446,3.39942705,2934.7,2934.2,0.002]
[1769002249651,0.001,2935.1,2934.6,7.20885431]
[1769002249864,0.001,2935.1,2934.6,3.37048645]
[1769002251152,3.64901242,2935.8,2934.5,3.37048645]
[1769002251318,3.08501242,2935.8,2934.7,3.37048645]
[1769002251644,3.08501242,2935.8,2934.9,3.37048645]
[1769002252720,3.08501242,2935.8,2935.0,0.2335703]
[1769002252917,3.08501242,2935.8,2935.0,3.60405675]
[1769002254750,3.08501242,2935.8,2935.0,7.01116927]
[1769002255154,3.25398646,2936.0,2935.0,7.01116927]
[1769002255354,3.25398646,2936.0,2935.0,3.60405675]
[1769002255552,3.25318646,2935.6,2934.6,3.64111228]
[1769002255723,3.25318646,2935.6,2934.8,0.002]
[1769002258366,3.26799641,2935.0,2934.0,0.002]
[1769002258565,3.26799641,2934.8,2934.0,0.002]
[1769002259126,3.26799641,2934.8,2934.0,0.2355703]
[1769002259361,3.26799641,2934.8,2934.0,0.002]
[1769002260428,3.83836786,2934.8,2934.0,0.2355703]
[1769002260636,3.26799641,2934.7,2934.0,0.2355703]
[1769002260834,3.26799641,2934.7,2934.0,0.002]
[1769002262669,3.26799641,2934.4,2933.5,0.002]
[1769002263170,3.26799641,2934.1,2933.5,0.002]
[1769002263352,3.26799641,2934.1,2933.4,0.002]
[1769002263869,0.563,2934.3,2933.3,0.002]
[1769002263870,3.26799641,2933.8,2933.3,0.002]
[1769002264966,3.26799641,2934.6,2933.5,3.32336166]
[1769002265133,3.26799641,2934.6,2933.6,3.35744947]
[1769002265837,0.563,2934.8,2933.6,3.35744947]
[1769002266159,3.83099641,2935.0,2933.8,3.32336166]
[1769002266359,3.26799641,2934.4,2933.4,3.35745179]
[1769002266671,3.26799641,2934.4,2933.4,0.03409013]
[1769002266973,3.26799641,2934.4,2933.3,0.002]
[1769002267169,3.26799641,2934.3,2933.3,0.002]
[1769002267474,3.26799641,2934.1,2933.3,0.002]
[1769002267839,3.26799641,2934.1,2933.8,0.002]
[1769002268057,3.26799641,2934.1,2933.5,0.002]
[1769002269673,3.26799641,2934.0,2933.3,0.002]
[1769002269881,3.26799641,2933.8,2933.3,0.002]
[1769002271888,3.26799641,2933.7,2933.1,0.002]
[1769002272090,3.26799641,2933.7,2932.4,0.002]
[1769002272600,3.26799641,2933.5,2932.4,0.002]
[1769002272798,3.26799641,2933.3,2932.4,0.002]
[1769002274214,3.26799641,2933.2,2932.4,0.002]
[1769002277406,3.40857666,2933.8,2932.4,0.002]
[1769002277607,3.20748009,2934.0,2932.4,3.26927306]
[1769002277908,3.40820012,2934.1,2932.4,3.26927306]
[1769002277909,4.43304811,2933.9,2932.4,3.26927306]
[1769002278107,1.22556802,2933.9,2932.4,3.26927306]
[1769002278307,3.20748009,2933.8,2932.4,3.26927306]
[1769002278806,3.77148009,2933.8,2932.4,3.26927306]
[1769002279180,3.77148009,2933.8,2932.4,0.002]
[1769002279378,3.20748009,2933.6,2932.4,0.002]
[1769002279779,3.20748009,2933.6,2932.4,3.41216199]
[1769002280003,3.20748009,2933.6,2932.6,0.002]
[1769002281517,6.61628535,2933.6,2932.6,0.002]
[1769002281723,3.20748009,2933.5,2932.6,0.002]
[1769002281894,3.20748009,2933.3,2932.6,0.002]
[1769002284204,0.564,2933.4,2932.6,3.23517131]
[1769002284631,3.77148009,2933.4,2932.6,0.002]
[1769002285224,3.20748009,2933.2,2932.6,0.002]
[1769002286244,3.20748009,2933.2,2932.3,0.002]
[1769002286444,3.5282281,2933.1,2932.3,0.002]
[1769002286620,3.20748009,2933.0,2932.3,0.002]
[1769002287143,3.20748009,2933.0,2931.9,0.002]
[1769002287319,3.20748009,2932.9,2931.9,0.002]
[1769002287908,3.20748009,2932.7,2931.9,0.002]
[1769002288136,3.20748009,2932.5,2931.9,0.002]
[1769002288337,3.20748009,2932.4,2931.9,0.002]
[1769002288908,3.20748009,2932.4,2931.8,0.002]
[1769002289943,3.20748009,2932.3,2931.2,0.002]
[1769002290156,3.20748009,2932.1,2931.2,0.002]
[1769002291937,3.20748009,2931.9,2930.3,3.4125781]
[1769002292138,6.8212824,2932.0,2930.3,3.44670429]
[1769002292139,3.20748009,2931.7,2930.3,3.44670429]
[1769002292464,3.20748009,2931.5,2930.2,3.23317131]
[1769002293058,3.20748009,2931.5,2930.2,6.64587875]
[1769002293259,3.20748009,2931.5,2930.1,3.4127663]
[1769002293572,3.20748009,2931.5,2930.7,0.002]
[1769002294222,3.20748009,2931.5,2929.5,4.30432698]
[1769002294223,3.20748009,2931.4,2929.6,3.23317131]
[1769002294418,3.20748009,2931.2,2929.1,3.26731148]
[1769002294677,0.0008,2930.1,2929.4,0.03413668]
[1769002294985,0.0008,2930.1,2929.5,3.26730682]
[1769002295120,0.0008,2930.1,2929.5,3.23317131]
[1769002295422,0.0008,2930.1,2929.3,0.0205501]
[1769002295629,0.0008,2930.1,2929.3,0.05468794]
[1769002295924,0.0008,2930.1,2929.3,0.0205501]
[1769002296362,0.0008,2930.1,2929.3,3.43432803]
[1769002297053,0.0008,2930.1,2929.3,0.0205501]
[1769002297263,0.32162801,2930.1,2929.4,0.03413668]
[1769002297431,0.32162801,2930.1,2929.3,0.0205501]
[1769002297625,0.0008,2930.1,2929.3,0.0205501]
[1769002298243,0.0008,2930.1,2929.3,3.43431385]
[1769002298432,0.0008,2930.1,2929.4,3.26730799]
[1769002298633,0.0008,2930.1,2929.4,3.23317131]
[1769002299041,0.0008,2930.1,2929.3,0.0205501]
[1769002299242,3.20748009,2930.0,2929.1,3.4139783]
[1769002299466,3.20748009,2930.0,2927.8,4.53671538]
[1769002299467,3.20748009,2929.8,2928.2,3.23317131]
[1769002299668,3.20748009,2929.8,2928.4,3.4147516]
[1769002300033,3.20748009,2929.8,2927.9,3.41533863]
[1769002300034,3.20748009,2929.8,2927.9,3.23317131]
[1769002300235,3.77148009,2929.7,2928.0,3.26732431]
[1769002300578,3.77148009,2929.6,2928.1,10.06353911]
[1769002300763,3.5846281,2929.5,2928.2,0.03415067]
[1769002301272,2.773074,2929.4,2927.6,0.19890853]
[1769002301431,0.0008,2927.7,2926.7,3.23317131]
[1769002301632,0.0008,2927.7,2926.9,3.23317131]
[1769002302254,0.0008,2927.7,2926.5,3.23317131]
[1769002302453,0.0008,2927.7,2926.7,3.41674897]
[1769002302658,0.0008,2927.7,2926.8,3.41669591]
[1769002302861,0.0008,2927.7,2926.9,6.8331022]
[1769002303087,0.564,2928.6,2926.9,6.8331022]
[1769002303088,3.20748009,2928.6,2927.0,3.26733598]
[1769002303288,0.32074801,2928.5,2927.0,3.26733598]
[1769002304179,0.32074801,2928.5,2927.1,6.8327013]
[1769002304362,3.20748009,2928.9,2927.2,3.26733364]
[1769002304877,3.20748009,2928.9,2927.2,3.26933364]
[1769002305550,4.04481886,2929.4,2927.4,3.37108375]
[1769002305883,4.04481886,2929.4,2927.6,3.37108375]
[1769002306078,3.35281886,2929.2,2927.7,0.0341565]
[1769002306280,3.35281886,2929.2,2927.7,3.4155632]
[1769002306591,3.35281886,2929.1,2927.3,0.03416117]
[1769002306779,3.35281886,2929.1,2927.6,3.41571457]
[1769002307278,3.35281886,2929.1,2927.7,3.4156488]
[1769002307477,3.35281886,2928.9,2927.7,6.83129931]
[1769002308263,3.35281886,2928.9,2927.7,3.4156488]
[1769002308471,3.35281886,2928.9,2927.7,6.86545581]
[1769002308678,3.35281886,2928.9,2927.7,6.83129931]
[1769002308873,3.35281886,2928.9,2927.8,0.03415533]
[1769002309187,3.35281886,2929.2,2927.8,3.40523908]
[1769002309388,3.38695918,2929.5,2927.8,3.40523908]
[1769002310483,3.38695918,2929.5,2927.9,13.61733532]
[1769002310683,0.03414032,2929.7,2928.0,3.63880705]
[1769002310903,0.33879592,2929.7,2928.0,3.63880705]
[1769002311998,0.001,2929.9,2928.7,3.37108375]
[1769002312200,0.001,2929.9,2928.9,3.37108375]
[1769002312496,0.001,2929.9,2929.0,10.19935277]
[1769002313905,3.35381886,2929.9,2928.6,3.41458629]
[1769002314208,3.35281886,2929.7,2928.7,3.41441262]
[1769002314373,3.35281886,2929.7,2928.1,3.37108375]
[1769002314374,3.35281886,2929.7,2928.8,3.4143665]
[1769002314580,3.35281886,2929.7,2928.3,3.41490204]
[1769002314581,0.001,2929.9,2928.7,3.37108375]
[1769002315611,0.001,2929.9,2928.7,3.40522859]
[1769002316583,0.001,2929.9,2928.8,6.8287353]
[1769002317620,0.001,2929.9,2928.9,0.03414251]
[1769002317926,0.001,2929.5,2928.9,0.03414251]
[1769002318150,0.001,2929.5,2928.8,3.41436765]
[1769002318350,0.001,2929.5,2928.8,6.86287897]
[1769002318552,3.35833734,2929.5,2928.2,6.83005284]
[1769002318752,3.35833734,2929.5,2928.3,0.0341495]
[1769002319166,3.69417107,2929.5,2928.3,0.0341495]
[1769002320617,3.69417107,2929.5,2928.4,6.82966806]
[1769002320816,0.33683373,2929.5,2928.5,0.03414717]
[1769002321053,0.001,2929.5,2928.5,3.413625]
[1769002322563,0.001,2929.5,2928.7,3.37947783]
[1769002322755,0.001,2929.5,2928.8,0.03414367]
[1769002322952,0.001,2929.5,2928.6,3.41460083]
[1769002323463,0.001,2929.5,2928.6,6.86334766]
[1769002323766,0.33683373,2929.5,2928.6,6.82920166]
[1769002324263,0.001,2929.5,2928.7,3.41362267]
[1769002324769,0.001,2929.5,2928.8,6.8287353]
[1769002325066,0.001,2929.5,2928.8,3.41436765]
[1769002325264,0.001,2929.5,2928.8,6.8287353]
[1769002326031,0.001,2929.5,2928.8,3.41436765]
[1769002326533,0.001,2929.5,2928.9,0.03414251]
[1769002326969,0.001,2929.5,2929.0,6.82826902]
[1769002327634,0.001,2929.9,2929.0,6.82826902]
[1769002328663,0.001,2929.9,2929.1,3.413618]
[1769002329075,0.0008,2930.1,2929.3,3.37947783]
[1769002329237,0.0008,2930.1,2929.4,0.03413668]
[1769002329779,0.0008,2930.4,2929.4,3.41361451]
[1769002331068,0.0008,2930.4,2929.6,3.37947783]
[1769002331256,0.0008,2930.4,2929.6,3.41361218]
[1769002333053,0.0008,2930.4,2929.7,6.82663752]
[1769002335374,0.0008,2930.4,2929.6,3.41339522]